bitfinex-derivatives/quotes_BNBF0:USTF0_20250401
["timestamp","ask_amount","ask_price","bid_price","bid_amount"]
[1743473556266,0.30281759,607.45,605.6,0.33025099]
[1743473556466,0.30281759,607.46,605.6,0.33025099]
[1743473556668,0.30281759,607.45,605.6,0.33025099]
[1743473556868,0.30281759,607.46,605.6,0.33025099]
[1743473557071,0.30281759,607.45,605.6,0.33025099]
[1743473557269,0.30281759,607.46,605.6,0.33025099]
[1743473557468,0.30281759,607.45,605.6,0.33025099]
[1743473557668,0.2868317,607.44,605.6,0.33025099]
[1743473558073,0.30281759,607.43,605.6,0.33025099]
[1743473559472,0.30281759,607.43,605.63,2.49849548]
[1743473559672,0.30281759,607.43,605.65,0.33022372]
[1743473560576,0.58963393,607.42,605.65,0.33022372]
[1743473560871,0.30281759,607.41,605.65,0.33022372]
[1743473561977,0.28681634,607.42,605.65,0.33022372]
[1743473562178,0.30281021,607.41,605.65,0.33022372]
[1743473562576,0.28681634,607.42,605.65,0.33022372]
[1743473563377,0.329126,607.67,605.65,0.33022372]
[1743473563681,0.28679743,607.41,605.65,0.33022372]
[1743473563879,0.329126,607.67,605.65,0.33022372]
[1743473564080,0.30280247,607.66,605.65,0.33022372]
[1743473564374,0.28679861,607.4,605.65,0.33022372]
[1743473564578,0.329126,607.67,605.65,0.33022372]
[1743473564882,0.28679743,607.65,605.65,0.33022372]
[1743473565179,0.30280371,607.64,605.65,0.33022372]
[1743473566479,0.30280371,607.66,605.65,0.33022372]
[1743473566680,0.28682343,607.63,605.65,0.33022372]
[1743473566879,0.30280371,607.62,605.65,0.33022372]
[1743473567080,0.30280575,607.61,605.65,0.33022372]
[1743473567281,0.30280575,607.62,605.65,0.33022372]
[1743473567481,0.30280575,607.61,605.65,0.33022372]
[1743473567781,0.30280575,607.6,605.65,0.33022372]
[1743473567982,0.30280575,607.59,605.65,0.33022372]
[1743473568182,0.30280575,607.62,605.65,0.33022372]
[1743473568382,0.30280575,607.61,605.65,0.33022372]
[1743473568577,0.28682343,607.63,605.65,0.33022372]
[1743473568783,0.30280248,607.62,605.65,0.33022372]
[1743473569482,0.30280248,607.66,605.65,0.33022372]
[1743473569687,0.28682579,607.61,605.65,0.33022372]
[1743473569886,0.30280248,607.6,605.65,0.33022372]
[1743473571984,0.30280529,607.59,605.65,0.33022372]
[1743473572180,0.30280529,607.6,605.65,0.33022372]
[1743473572382,0.30280529,607.59,605.65,0.33022372]
[1743473572577,0.58965,607.58,605.65,0.33022372]
[1743473572782,0.30280529,607.57,605.65,0.33022372]
[1743473573685,0.30280529,607.57,605.18,4.49188981]
[1743473573886,0.30280529,607.57,605.32,2.49849548]
[1743473574885,0.30280529,607.57,605.33,0.2868317]
[1743473575386,0.30280529,607.57,605.32,2.49849548]
[1743473575587,0.2868317,607.56,605.32,2.49849548]
[1743473575983,0.30280529,607.55,605.32,2.49849548]
[1743473578686,0.28683407,607.54,605.33,0.28683407]
[1743473578989,0.30280529,607.53,605.69,2.49849548]
[1743473580586,0.30280529,607.53,605.7,2.49849548]
[1743473581691,0.58959681,607.52,605.63,2.49849548]
[1743473581892,0.30280529,607.51,605.63,2.49849548]
[1743473583088,0.30280529,607.51,605.64,2.49849548]
[1743473584487,0.30280529,607.5,605.64,2.49849548]
[1743473584694,0.28680097,607.5,605.64,2.49849548]
[1743473584900,0.30280529,607.49,605.64,2.49849548]
[1743473585100,0.30280529,607.49,605.62,2.49849548]
[1743473585696,0.30280529,607.49,605.62,5.16839366]
[1743473585900,0.30280529,607.49,605.63,1.82199163]
[1743473586799,0.30280529,607.49,605.63,4.32048711]
[1743473586997,0.30280529,607.49,605.63,6.99038529]
[1743473587302,0.30280529,607.49,605.64,1.82199163]
[1743473587602,0.58960981,607.48,605.64,1.82199163]
[1743473587804,0.30280529,607.47,605.64,1.82199163]
[1743473588198,0.30280529,607.47,605.64,4.49188981]
[1743473589903,0.30280529,607.47,605.64,6.99038529]
[1743473590099,0.30280529,607.47,605.65,1.82199163]
[1743473590499,0.30280529,607.46,605.65,1.82199163]
[1743473590703,0.28680452,607.46,605.65,1.82199163]
[1743473590902,0.30280529,607.45,605.65,1.82199163]
[1743473591101,0.30280529,607.45,605.65,4.49188981]
[1743473591906,0.30280529,607.45,605.71,2.49849548]
[1743473592907,0.28680452,607.46,605.71,2.49849548]
[1743473593106,0.30280552,607.45,605.71,2.49849548]
[1743473593306,0.30280552,607.45,605.74,2.49849548]
[1743473593502,0.30280552,607.51,605.74,2.49849548]
[1743473593706,0.28679979,607.44,605.74,2.49849548]
[1743473593902,0.30280552,607.43,605.74,2.49849548]
[1743473594409,0.30280552,607.43,605.78,2.49849548]
[1743473595104,0.28679979,607.44,605.78,2.49849548]
[1743473595309,0.28679979,607.44,605.72,1.82199163]
[1743473595709,0.28679979,607.44,605.71,2.66989818]
[1743473595909,0.28679979,607.44,605.46,1.82199163]
[1743473596109,0.28679979,607.44,605.45,4.49188981]
[1743473596310,2.50726975,607.8,605.46,1.82199163]
[1743473596505,0.30280396,607.79,605.46,1.82199163]
[1743473596710,0.28679034,607.43,605.57,0.33026735]
[1743473597011,0.32906643,607.78,605.57,0.33026735]
[1743473597209,0.30280396,607.77,605.57,0.33026735]
[1743473597408,0.32907726,607.76,605.57,0.33026735]
[1743473597609,0.30280396,607.75,605.57,0.33026735]
[1743473597809,0.32908809,607.74,605.57,0.33026735]
[1743473598010,0.30280669,607.73,605.57,0.33026735]
[1743473598206,0.32909892,607.72,605.57,0.33026735]
[1743473598411,0.30280669,607.71,605.57,0.33026735]
[1743473598610,0.32910975,607.7,605.57,0.33026735]
[1743473598906,0.30280669,607.69,605.57,0.33026735]
[1743473599912,0.28679861,607.68,605.57,0.33026735]
[1743473600212,0.30280669,607.67,605.57,0.33026735]
[1743473602617,0.58959821,607.66,605.57,0.33026735]
[1743473602814,0.28679152,607.66,605.57,0.33026735]
[1743473603011,0.30280345,607.65,605.57,0.33026735]
[1743473605512,0.30280345,607.64,605.57,0.33026735]
[1743473605708,0.30280345,607.63,605.57,0.33026735]
[1743473606114,0.28679034,607.64,605.57,0.33026735]
[1743473606314,0.30278475,607.63,605.57,0.33026735]
[1743473608618,0.28679152,607.62,605.57,0.33026735]
[1743473609019,0.30278475,607.61,605.57,0.33026735]
[1743473611622,0.28680925,607.6,605.57,0.33026735]
[1743473611923,0.30278475,607.59,605.57,0.33026735]
[1743473612823,0.30277715,607.58,605.57,0.33026735]
[1743473613025,0.30277715,607.57,605.57,0.33026735]
[1743473613422,0.30277715,607.56,605.57,0.33026735]
[1743473613621,0.30277715,607.59,605.57,0.33026735]
[1743473613820,0.28680925,607.6,605.57,0.33026735]
[1743473613821,0.30277715,607.58,605.57,0.33026735]
[1743473614121,0.30277715,607.57,605.57,0.33026735]
[1743473614322,0.30277715,607.59,605.57,0.33026735]
[1743473614517,0.30277715,607.58,605.57,0.33026735]
[1743473614723,0.28681043,607.56,605.57,0.33026735]
[1743473614923,0.30277715,607.55,605.57,0.33026735]
[1743473616022,0.30277689,607.54,605.57,0.33026735]
[1743473616222,0.30277689,607.53,605.57,0.33026735]
[1743473616422,0.30277689,607.52,605.57,0.33026735]
[1743473616619,0.30277689,607.55,605.57,0.33026735]
[1743473617625,0.28681043,607.54,605.57,0.33026735]
[1743473618125,0.30277689,607.53,605.57,0.33026735]
[1743473620620,0.58958614,607.52,605.57,0.33026735]
[1743473620822,0.30277689,607.51,605.57,0.33026735]
[1743473625930,0.28680925,607.52,605.57,0.33026735]
[1743473626228,0.30278163,607.51,605.57,0.33026735]
[1743473626631,0.28680807,607.5,605.57,0.33026735]
[1743473627027,0.30277949,607.49,605.57,0.33026735]
[1743473627629,0.30277763,607.48,605.57,0.33026735]
[1743473627828,0.28680807,607.5,605.57,0.33026735]
[1743473627829,0.30277763,607.49,605.57,0.33026735]
[1743473628132,0.28680807,607.5,605.57,0.33026735]
[1743473628326,0.30277737,607.49,605.57,0.33026735]
[1743473629527,0.30277737,607.69,605.57,0.33026735]
[1743473629730,0.30277737,607.68,605.57,0.33026735]
[1743473630031,0.28678561,607.48,605.57,0.33026735]
[1743473630231,0.30277737,607.47,605.57,0.33026735]
[1743473630428,0.28679861,607.47,605.57,0.33026735]
[1743473630633,0.30277737,607.46,605.57,0.33026735]
[1743473632534,0.30278267,607.45,605.57,0.33026735]
[1743473632731,0.30278267,607.44,605.57,0.33026735]
[1743473633630,0.28680216,607.45,605.57,0.33026735]
[1743473635430,0.32910975,607.7,605.57,0.33026735]
[1743473635630,0.28677498,607.44,605.57,0.33026735]
[1743473636036,0.32910975,607.7,605.57,0.33026735]
[1743473636240,0.28677616,607.43,605.57,0.33026735]
[1743473636641,0.32910975,607.7,605.57,0.33026735]
[1743473636842,0.28679152,607.42,605.57,0.33026735]
[1743473637343,0.32910975,607.7,605.57,0.33026735]
[1743473637538,0.28679152,607.41,605.57,0.33026735]
[1743473637743,0.32910975,607.7,605.57,0.33026735]
[1743473637943,0.3027806,607.69,605.57,0.33026735]
[1743473638245,0.28679152,607.4,605.57,0.33026735]
[1743473638445,0.32910975,607.7,605.57,0.33026735]
[1743473638642,0.30278007,607.69,605.57,0.33026735]
[1743473638837,0.28679034,607.39,605.57,0.33026735]
[1743473639041,0.32910975,607.7,605.57,0.33026735]
[1743473639540,0.28678916,607.38,605.57,0.33026735]
[1743473639738,0.32910975,607.7,605.57,0.33026735]
[1743473639943,0.28679979,607.37,605.57,0.33026735]
[1743473640243,0.32910975,607.7,605.57,0.33026735]
[1743473640445,0.30278007,607.69,605.57,0.33026735]
[1743473640744,0.28679979,607.36,605.57,0.33026735]
[1743473640947,0.32910975,607.7,605.57,0.33026735]
[1743473641155,0.28679152,607.35,605.57,0.33026735]
[1743473641646,0.32910975,607.7,605.57,0.33026735]
[1743473641842,0.28679034,607.34,605.57,0.33026735]
[1743473642242,0.32910975,607.7,605.57,0.33026735]
[1743473642446,0.28679152,607.33,605.57,0.33026735]
[1743473642846,0.32910975,607.7,605.57,0.33026735]
[1743473643047,0.28679152,607.32,605.57,0.33026735]
[1743473643444,0.32910975,607.7,605.57,0.33026735]
[1743473643648,0.28678561,607.31,605.57,0.33026735]
[1743473644050,0.32910975,607.7,605.57,0.33026735]
[1743473644248,0.28678679,607.3,605.57,0.33026735]
[1743473644650,0.32910975,607.7,605.57,0.33026735]
[1743473644851,0.30277747,607.69,605.57,0.33026735]
[1743473645851,0.28678088,607.68,605.57,0.33026735]
[1743473646155,0.30277747,607.67,605.57,0.33026735]
[1743473647547,0.30277747,607.69,605.57,0.33026735]
[1743473647749,0.2867797,607.66,605.57,0.33026735]
[1743473648047,0.30277747,607.65,605.57,0.33026735]
[1743473648751,0.30278044,607.64,605.57,0.33026735]
[1743473648951,0.30278044,607.63,605.57,0.33026735]
[1743473649150,0.30278044,607.65,605.57,0.33026735]
[1743473650255,0.30278052,607.64,605.57,0.33026735]
[1743473650450,0.30278052,607.63,605.57,0.33026735]
[1743473650651,0.28678325,607.64,605.57,0.33026735]
[1743473650853,0.30278052,607.63,605.57,0.33026735]
[1743473654264,0.28678325,607.64,605.57,0.33026735]
[1743473656368,0.32910975,607.7,605.57,0.33026735]
[1743473656568,0.30278133,607.69,605.57,0.33026735]
[1743473656968,0.58950669,607.69,605.57,0.33026735]
[1743473657168,0.30278133,607.68,605.57,0.33026735]
[1743473659667,0.32910975,607.7,605.57,0.33026735]
[1743473659668,0.58956103,607.67,605.57,0.33026735]
[1743473659867,0.30278133,607.66,605.57,0.33026735]
[1743473663467,0.30278106,607.65,605.57,0.33026735]
[1743473663665,0.30278106,607.66,605.57,0.33026735]
[1743473663868,0.30278106,607.64,605.57,0.33026735]
[1743473664063,0.30278106,607.63,605.57,0.33026735]
[1743473664268,0.2867797,607.67,605.57,0.33026735]
[1743473664269,0.30278106,607.66,605.57,0.33026735]
[1743473664466,0.30278106,607.62,605.57,0.33026735]
[1743473664666,0.30278106,607.65,605.57,0.33026735]
[1743473664866,0.30278106,607.64,605.57,0.33026735]
[1743473665069,0.30278133,607.63,605.57,0.33026735]
[1743473665266,0.30278133,607.66,605.57,0.33026735]
[1743473665465,0.30278133,607.65,605.57,0.33026735]
[1743473665671,0.28678207,607.62,605.62,2.49849548]
[1743473665866,0.30278133,607.61,605.64,0.33022917]
[1743473667072,0.30278133,607.61,605.69,2.49849548]
[1743473667672,0.30278133,607.61,605.71,0.33019101]
[1743473668670,0.58954567,607.6,605.71,0.33019101]
[1743473668873,0.30278133,607.59,605.71,0.33019101]
[1743473671568,0.28677379,607.58,605.71,0.33019101]
[1743473671978,0.30278133,607.57,605.71,0.33019101]
[1743473674578,0.30278133,607.69,605.71,0.33019101]
[1743473674774,0.28680688,607.56,605.71,0.33019101]
[1743473674976,0.30278897,607.55,605.71,0.33019101]
[1743473675173,0.30278897,607.54,605.71,0.33019101]
[1743473675378,0.28679507,607.55,605.71,0.33019101]
[1743473675578,0.30278897,607.54,605.71,0.33019101]
[1743473676480,0.30281767,607.53,605.71,0.33019101]
[1743473676674,0.30281767,607.54,605.71,0.33019101]
[1743473677582,0.30281767,607.53,605.71,0.33019101]
[1743473677783,0.30281767,607.52,605.71,0.33019101]
[1743473680585,0.30281767,607.51,605.71,0.33019101]
[1743473680788,0.30281767,607.5,605.71,0.33019101]
[1743473682787,0.30282215,607.49,605.71,0.33019101]
[1743473682990,0.30282215,607.5,605.71,0.33019101]
[1743473683187,0.30282215,607.49,605.71,0.33019101]
[1743473683392,0.28686717,607.51,605.71,0.33019101]
[1743473683691,0.30282189,607.5,605.71,0.33019101]
[1743473684392,0.30282155,607.49,605.71,0.33019101]
[1743473684591,0.30282155,607.48,605.71,0.33019101]
[1743473684793,0.30282155,607.47,605.71,0.33019101]
[1743473684992,0.30282155,607.46,605.71,0.33019101]
[1743473685292,0.28686717,607.51,605.71,0.33019101]
[1743473685492,0.30282155,607.5,605.71,0.33019101]
[1743473685994,0.30282215,607.49,605.71,0.33019101]
[1743473686289,0.30282215,607.48,605.71,0.33019101]
[1743473686594,0.30282215,607.47,605.71,0.33019101]
[1743473686794,0.30282215,607.46,605.71,0.33019101]
[1743473687089,0.28687781,607.48,605.71,0.33019101]
[1743473687294,0.302822,607.47,605.71,0.33019101]
[1743473687494,0.28687781,607.48,605.71,0.33019101]
[1743473687695,0.30282189,607.47,605.71,0.33019101]
[1743473689694,0.58970325,607.46,605.71,0.33019101]
[1743473689896,0.30282189,607.45,605.71,0.33019101]
[1743473691296,0.28688136,607.46,605.71,0.33019101]
[1743473692394,0.32912058,607.68,605.71,0.33019101]
[1743473692595,0.30277975,607.67,605.71,0.33019101]
[1743473692798,0.28682225,607.45,605.71,0.33019101]
[1743473692997,0.32912058,607.68,605.71,0.33019101]
[1743473693199,0.28682461,607.44,605.71,0.33019101]
[1743473693597,0.32912058,607.68,605.71,0.33019101]
[1743473693793,0.28682461,607.43,605.71,0.33019101]
[1743473694193,0.32912058,607.68,605.71,0.33019101]
[1743473694499,0.28684234,607.42,605.71,0.33019101]
[1743473694698,0.32912058,607.68,605.71,0.33019101]
[1743473695001,0.28684353,607.41,605.71,0.33019101]
[1743473695401,0.32912058,607.68,605.71,0.33019101]
[1743473695600,0.30278025,607.67,605.71,0.33019101]
[1743473695801,0.28683998,607.4,605.71,0.33019101]
[1743473696101,0.32912058,607.68,605.71,0.33019101]
[1743473696302,0.30278016,607.67,605.71,0.33019101]
[1743473696798,0.2868388,607.66,605.71,0.33019101]
[1743473697003,0.30278016,607.65,605.71,0.33019101]
[1743473697203,0.3027783,607.64,605.71,0.33019101]
[1743473697406,0.3027783,607.63,605.71,0.33019101]
[1743473697704,0.3027783,607.65,605.71,0.33019101]
[1743473697897,0.3027783,607.64,605.71,0.33019101]
[1743473698099,0.3027783,607.63,605.71,0.33019101]
[1743473698404,0.3027783,607.62,605.71,0.33019101]
[1743473698599,0.3027783,607.61,605.71,0.33019101]
[1743473698903,0.28683762,607.62,605.71,0.33019101]
[1743473699203,0.30277686,607.61,605.71,0.33019101]
[1743473700401,0.30277686,607.6,605.71,0.33019101]
[1743473700604,0.28683762,607.62,605.71,0.33019101]
[1743473701107,0.30276944,607.61,605.71,0.33019101]
[1743473701500,0.30276944,607.67,605.71,0.33019101]
[1743473701703,0.28683998,607.6,605.71,0.33019101]
[1743473701904,0.30276944,607.59,605.71,0.33019101]
[1743473707610,0.30276944,607.67,605.71,0.33019101]
[1743473707814,0.2868057,607.58,605.71,0.33019101]
[1743473708113,0.30276944,607.57,605.71,0.33019101]
[1743473708314,0.30276944,607.56,605.71,0.33019101]
[1743473709513,0.28679861,607.57,605.71,0.33019101]
[1743473709718,0.30276909,607.56,605.71,0.33019101]
[1743473710613,0.58959134,607.55,605.71,0.33019101]
[1743473710818,0.28682225,607.55,605.71,0.33019101]
[1743473713419,0.30276909,607.54,605.71,0.33019101]
[1743473713619,0.32912058,607.68,605.71,0.33019101]
[1743473713814,0.28681043,607.53,605.71,0.33019101]
[1743473714319,0.32912058,607.68,605.71,0.33019101]
[1743473714519,0.28681043,607.52,605.71,0.33019101]
[1743473714725,0.32912058,607.68,605.71,0.33019101]
[1743473714928,0.30276909,607.67,605.71,0.33019101]
[1743473715116,0.28681161,607.51,605.71,0.33019101]
[1743473715322,0.32912058,607.68,605.71,0.33019101]
[1743473715516,0.30276756,607.67,605.71,0.33019101]
[1743473715718,0.28681516,607.5,605.71,0.33019101]
[1743473715921,0.32912058,607.68,605.71,0.33019101]
[1743473716122,0.30276742,607.67,605.71,0.33019101]
[1743473716317,0.28681397,607.49,605.71,0.33019101]
[1743473716522,0.32912058,607.68,605.71,0.33019101]
[1743473716723,0.30276742,607.67,605.71,0.33019101]
[1743473716922,0.28681279,607.48,605.71,0.33019101]
[1743473717122,0.32912058,607.68,605.71,0.33019101]
[1743473717321,0.30276732,607.67,605.71,0.33019101]
[1743473717522,0.28681279,607.47,605.71,0.33019101]
[1743473717724,0.32912058,607.68,605.71,0.33019101]
[1743473718024,0.28681043,607.46,605.71,0.33019101]
[1743473718425,0.32912058,607.68,605.71,0.33019101]
[1743473718720,0.28680925,607.45,605.71,0.33019101]
[1743473718921,0.32912058,607.68,605.71,0.33019101]
[1743473719122,0.3027676,607.67,605.71,0.33019101]
[1743473719325,0.28680688,607.44,605.71,0.33019101]
[1743473719524,0.32912058,607.68,605.71,0.33019101]
[1743473719724,0.3027691,607.67,605.71,0.33019101]
[1743473719926,0.2868057,607.43,605.71,0.33019101]
[1743473720225,0.32912058,607.68,605.71,0.33019101]
[1743473720424,0.28679625,607.42,605.71,0.33019101]
[1743473720826,0.32912058,607.68,605.71,0.33019101]
[1743473721126,0.28678916,607.41,605.71,0.33019101]
[1743473721325,0.32912058,607.68,605.71,0.33019101]
[1743473721529,0.30275956,607.67,605.71,0.33019101]
[1743473721730,0.28678443,607.4,605.71,0.33019101]
[1743473721921,0.32912058,607.68,605.71,0.33019101]
[1743473722125,0.30276301,607.67,605.71,0.33019101]
[1743473722322,0.28678443,607.39,605.71,0.33019101]
[1743473722525,0.32912058,607.68,605.71,0.33019101]
[1743473722726,0.30276458,607.67,605.71,0.33019101]
[1743473723022,0.28678443,607.38,605.71,0.33019101]
[1743473723228,0.32912058,607.68,605.71,0.33019101]
[1743473723429,0.28678088,607.37,605.71,0.33019101]
[1743473723727,0.32912058,607.68,605.71,0.33019101]
[1743473724128,0.2867797,607.36,605.71,0.33019101]
[1743473724328,0.32912058,607.68,605.71,0.33019101]
[1743473724727,0.28677852,607.35,605.71,0.33019101]
[1743473724927,0.32912058,607.68,605.71,0.33019101]
[1743473725120,0.2867041,607.67,605.71,0.33019101]
[1743473728530,0.32912058,607.68,605.71,0.33019101]
[1743473728731,0.2868388,607.66,605.71,0.33019101]
[1743473731431,0.32912058,607.68,605.71,0.33019101]
[1743473731831,0.28684116,607.65,605.71,0.33019101]
[1743473734432,0.32912058,607.68,605.71,0.33019101]
[1743473735031,0.28673835,607.67,605.71,0.33019101]
[1743473736234,0.30272241,607.66,605.71,0.33019101]
[1743473737730,0.5895092,607.65,605.71,0.33019101]
[1743473737927,0.30272241,607.64,605.71,0.33019101]
[1743473738729,0.28678679,607.65,605.71,0.33019101]
[1743473740130,0.30271789,607.64,605.71,0.33019101]
[1743473740636,0.30271789,607.67,605.71,0.33019101]
[1743473740839,0.28676907,607.63,605.71,0.33019101]
[1743473743338,0.32912058,607.68,605.71,0.33019101]
[1743473743637,0.28676552,607.62,605.71,0.33019101]
[1743473746436,0.32912058,607.68,605.71,0.33019101]
[1743473746638,0.28674662,607.61,605.71,0.33019101]
[1743473749441,0.32912058,607.68,605.71,0.33019101]
[1743473749638,0.30271764,607.67,605.71,0.33019101]
[1743473749842,0.28675135,607.6,605.71,0.33019101]
[1743473752541,0.32912058,607.68,605.71,0.33019101]
[1743473752746,0.28673481,607.59,605.71,0.33019101]
[1743473753142,0.32912058,607.68,605.71,0.33019101]
[1743473753344,0.30271826,607.67,605.71,0.33019101]
[1743473754340,0.28673244,607.66,605.71,0.33019101]
[1743473754542,0.30271826,607.65,605.71,0.33019101]
[1743473755645,0.28673481,607.64,605.71,0.33019101]
[1743473755840,0.30271826,607.63,605.71,0.33019101]
[1743473758246,0.30271594,607.62,605.71,0.33019101]
[1743473758445,0.30271594,607.61,605.74,2.49849548]
[1743473758644,0.28672181,607.61,605.76,0.33016376]
[1743473761344,0.32912058,607.68,605.76,0.33016376]
[1743473761651,0.2867289,607.6,605.76,0.33016376]
[1743473762046,0.32912058,607.68,605.76,0.33016376]
[1743473762450,0.28672772,607.59,605.76,0.33016376]
[1743473762648,0.32912058,607.68,605.76,0.33016376]
[1743473763152,0.28673008,607.58,605.76,0.33016376]
[1743473763352,0.32912058,607.68,605.76,0.33016376]
[1743473763546,0.28665096,607.67,605.76,0.33016376]
[1743473764446,0.32912058,607.68,605.76,0.33016376]
[1743473764851,0.28673008,607.66,605.76,0.33016376]
[1743473767454,0.32912058,607.68,605.76,0.33016376]
[1743473767648,0.28676552,607.65,605.76,0.33016376]
[1743473770453,0.32912058,607.68,605.76,0.33016376]
[1743473771057,0.28668874,607.67,605.76,0.33016376]
[1743473773451,0.32912058,607.68,605.76,0.33016376]
[1743473773655,0.2867478,607.66,605.76,0.33016376]
[1743473776458,0.32912058,607.68,605.76,0.33016376]
[1743473776853,0.28665214,607.67,605.76,0.33016376]
[1743473779459,0.32912058,607.68,605.76,0.33016376]
[1743473779863,0.28677852,607.66,605.76,0.33016376]
[1743473781063,0.32912058,607.68,605.76,0.33016376]
[1743473786873,0.28667221,607.67,605.76,0.33016376]
[1743473788475,0.32912058,607.68,605.76,0.33016376]
[1743473788870,0.28672772,607.66,605.76,0.33016376]
[1743473791574,0.32912058,607.68,605.76,0.33016376]
[1743473791774,0.28673835,607.65,605.76,0.33016376]
[1743473794573,0.32912058,607.68,605.76,0.33016376]
[1743473794780,0.28673008,607.64,605.76,0.33016376]
[1743473797381,0.32912058,607.68,605.76,0.33016376]
[1743473797779,0.28671473,607.63,605.76,0.33016376]
[1743473799984,0.28671473,607.63,605.76,2.82865924]
[1743473800376,0.32912058,607.68,605.76,2.82865924]
[1743473800779,0.28669937,607.62,605.76,2.82865924]
[1743473801584,0.28669937,607.62,605.76,0.33016376]
[1743473803390,0.32912058,607.68,605.76,0.33016376]
[1743473803790,0.28671355,607.61,605.76,0.33016376]
[1743473806490,0.32912058,607.68,605.76,0.33016376]
[1743473806691,0.28671355,607.6,605.76,0.33016376]
[1743473807095,0.32912058,607.68,605.76,0.33016376]
[1743473807297,0.28671709,607.59,605.76,0.33016376]
[1743473807698,0.32912058,607.68,605.76,0.33016376]
[1743473807893,0.28671709,607.58,605.76,0.33016376]
[1743473808196,0.32912058,607.68,605.76,0.33016376]
[1743473808499,0.2867289,607.57,605.76,0.33016376]
[1743473808793,0.32912058,607.68,605.76,0.33016376]
[1743473809199,0.28672418,607.56,605.76,0.33016376]
[1743473809399,0.32912058,607.68,605.76,0.33016376]
[1743473809800,0.28672418,607.55,605.76,0.33016376]
[1743473809998,0.32912058,607.68,605.76,0.33016376]
[1743473810394,0.28672418,607.54,605.76,0.33016376]
[1743473810797,0.32912058,607.68,605.76,0.33016376]
[1743473810997,0.286723,607.53,605.76,0.33016376]
[1743473811300,0.32912058,607.68,605.76,0.33016376]
[1743473811692,0.286723,607.52,605.76,0.33016376]
[1743473811897,0.32912058,607.68,605.76,0.33016376]
[1743473812294,0.286723,607.51,605.76,0.33016376]
[1743473812499,0.32912058,607.68,605.76,0.33016376]
[1743473812700,2.50726975,608.48,605.76,0.33016376]
[1743473812999,0.28671709,607.5,605.76,0.33016376]
[1743473813200,0.32869868,608.46,605.76,0.33016376]
[1743473813394,0.30258788,608.45,605.76,0.33016376]
[1743473813596,0.32871488,608.43,605.76,0.33016376]
[1743473814099,0.30258492,608.42,605.76,0.33016376]
[1743473814296,0.32873109,608.4,605.76,0.33016376]
[1743473814596,0.30258492,608.39,605.76,0.33016376]
[1743473814801,0.3287473,608.37,605.76,0.33016376]
[1743473814996,0.30258492,608.36,605.76,0.33016376]
[1743473815606,0.32876352,608.34,605.76,0.33016376]
[1743473815800,0.30258492,608.33,605.76,0.33016376]
[1743473817304,0.30259052,608.32,605.76,0.33016376]
[1743473817498,0.30259052,608.33,605.76,0.33016376]
[1743473817702,0.32877973,608.31,605.76,0.33016376]
[1743473817898,0.30259052,608.3,605.76,0.33016376]
[1743473818104,0.32879594,608.28,605.76,0.33016376]
[1743473818302,0.30259052,608.27,605.76,0.33016376]
[1743473818501,0.32881216,608.25,605.76,0.33016376]
[1743473818698,0.30259052,608.24,605.76,0.33016376]
[1743473818903,0.63141434,608.23,605.76,0.33016376]
[1743473819203,0.63141975,608.22,605.76,0.33016376]
[1743473819499,0.63142516,608.21,605.76,0.33016376]
[1743473819803,0.63143056,608.2,605.76,0.33016376]
[1743473820004,0.63143597,608.19,605.76,0.33016376]
[1743473820201,0.63144138,608.18,605.76,0.33016376]
[1743473820397,0.63144678,608.17,605.76,0.33016376]
[1743473820599,0.63145219,608.16,605.76,0.33016376]
[1743473820799,0.6314576,608.15,605.76,0.33016376]
[1743473821002,0.63146301,608.14,605.76,0.33016376]
[1743473821204,0.30259137,608.13,605.76,0.33016376]
[1743473823202,0.32887164,608.14,605.76,0.33016376]
[1743473823403,0.30254774,608.13,605.76,0.33016376]
[1743473823805,0.58915385,608.13,605.76,0.33016376]
[1743473824107,0.30254774,608.12,605.76,0.33016376]
[1743473824408,0.32888786,608.11,605.76,0.33016376]
[1743473824600,0.30254774,608.1,605.76,0.33016376]
[1743473824800,0.63144101,608.1,605.76,0.33016376]
[1743473825007,0.30258771,608.09,605.76,0.33016376]
[1743473826407,0.32890409,608.08,605.76,0.33016376]
[1743473826707,0.30258771,608.07,605.76,0.33016376]
[1743473827305,0.3289149,608.06,605.76,0.33016376]
[1743473827504,0.30258771,608.05,605.76,0.33016376]
[1743473827704,0.32892572,608.04,605.76,0.33016376]
[1743473827905,0.30258771,608.03,605.76,0.33016376]
[1743473828108,0.32893654,608.02,605.76,0.33016376]
[1743473828307,0.30258771,608.01,605.76,0.33016376]
[1743473828504,0.32894736,608.0,605.76,0.33016376]
[1743473828707,0.30258771,607.99,605.76,0.33016376]
[1743473829008,0.63154048,607.99,605.76,0.33016376]
[1743473829204,0.30258771,607.98,605.76,0.33016376]
[1743473830006,0.30265098,607.97,605.76,0.33016376]
[1743473830207,0.30265098,607.96,605.76,0.33016376]
[1743473830410,0.30265098,607.95,605.76,0.33016376]
[1743473830714,0.30265098,607.94,605.76,0.33016376]
[1743473832314,0.30264853,607.93,605.76,0.33016376]
[1743473832509,0.30264853,607.94,605.76,0.33016376]
[1743473833313,0.30265072,607.93,605.76,0.33016376]
[1743473833513,0.30265072,607.94,605.76,0.33016376]
[1743473833811,0.30265072,607.93,605.76,0.33016376]
[1743473834007,0.30265072,607.94,605.76,0.33016376]